[Event "19th Raciborz Open 2019"]
[Site "Raciborz"]
[Date "2019.02.10"]
[Round "4.9"]
[White "Polczyk, Mikolaj"]
[Black "Trybus, Daniel"]
[Result "1-0"]
[ECO "E73"]
[WhiteElo "2052"]
[BlackElo "1916"]
[Annotator "NA RC"]
[PlyCount "127"]
[EventDate "2019.02.09"]
[EventType "swiss"]
[EventCountry "POL"]
[SourceTitle "playchess.com"]
[Source "ChessBase"]
[SourceQuality "1"]
[TimeControl "5400+30"]

1. d4 {[%emt 0:00:00]} Nf6 {[%emt 0:00:00]} 2. c4 {[%emt 0:00:00]} g6 {[%emt 0:00:00]} 3. Nc3 {[%emt 0:00:00]} Bg7 {[%emt 0:00:00]} 4. e4 {[%emt 0:00:00]} d6 {[%emt 0:00:02]} 5. Be2 {[%emt 0:00:19]} O-O {[%emt 0:00:27]} 6. Be3 {[%emt 0:00:08]} e5 {[%emt 0:00:15]} 7. d5 {[%emt 0:00:07]} Nbd7 {[%emt 0:00:56]} 8. g4 {[%emt 0:00:10]} Nc5 {[%emt 0:00:23]} 9. f3 {[%emt 0:00:06]} c6 {[%emt 0:00:32]} 10. h4 {[%emt 0:00:38]} cxd5 {[%emt 0:01:43]} 11. cxd5 {[%emt 0:03:22]} Bd7 {[%emt 0:02:27]} 12. h5 {[%emt 0:00:47]} Rc8 {[%emt 0:01:34]} 13. Qd2 {[%emt 0:04:00]} Qa5 {[%emt 0:02:24]} 14. h6 {[%emt 0:02:41]} Bh8 {[%emt 0:01:21]} 15. Nb5 {[%emt 0:08:34]} Qa4 {[%emt 0:07:25]} 16. Nc3 {[%emt 0:07:28]} Qa5 {[%emt 0:02:23]} 17. Rb1 {[%emt 0:10:23]} Na6 {[%emt 0:08:06]} 18. a3 {[%emt 0:05:44]} Nc7 {[%emt 0:05:47]} 19. Na2 Qxd2+ {[%emt 0:05:16]} 20. Kxd2 {[%emt 0:10:07]} Nb5 {[%emt 0:01:03]} 21. Bxb5 {[%emt 0:03:20]} Bxb5 {[%emt 0:00:04]} 22. Bxa7 {[%emt 0:02:08]} Nd7 {[%emt 0:01:49]} 23. Nc3 {[%emt 0:02:54]} Bc4 {[%emt 0:00:40]} 24. b3 {[%emt 0:01:59]} Ba6 {[%emt 0:00:37]} 25. Be3 {[%emt 0:00:22]} Bf6 {[%emt 0:01:54]} 26. Nge2 {[%emt 0:07:15]} Rc7 {[%emt 0:03:44]} 27. Rhc1 {[%emt 0:05:10]} Rfc8 {[%emt 0:00:14]} 28. Na4 {[%emt 0:03:45]} Rxc1 {[%emt 0:00:56]} 29. Rxc1 {[%emt 0:00:16]} Rxc1 {[%emt 0:00:32]} 30. Nxc1 {[%emt 0:00:16]} Bd8 {[%emt 0:01:09]} 31. Nd3 {[%emt 0:01:54]} f6 {[%emt 0:01:44]} 32. b4 {[%emt 0:05:13]} b5 {[%emt 0:02:26]} 33. Nc3 {[%emt 0:00:15]} Nb6 {[%emt 0:00:34]} 34. Nb2 {[%emt 0:00:04]} Kf7 {[%emt 0:02:20]} 35. a4 {[%emt 0:01:00]} bxa4 {[%emt 0:01:35]} 36. b5 {[%emt 0:02:02]} Bc8 {[%emt 0:00:45]} 37. Bxb6 {[%emt 0:05:46]} Bxb6 {[%emt 0:01:48]} 38. Ncxa4 {[%emt 0:00:17]} Ba5+ {[%emt 0:02:04]} 39. Kd3 {[%emt 0:00:31]} Ke7 {[%emt 0:01:36]} 40. Kc4 {[%emt 0:01:22]} Bd2 {[%emt 0:01:20]} 41. Kd3 {[%emt 0:01:27]} Bxh6 {[%emt 0:01:33]} 42. Nc4 {[%emt 0:00:18]} Bd7 {[%emt 0:02:33]} 43. b6 {[%emt 0:01:57]} Kd8 {[%emt 0:00:13]} 44. Nxd6 {[%emt 0:00:46]} Bf8 {[%emt 0:00:18]} 45. Nb7+ {[%emt 0:01:04]} Kc8 {[%emt 0:00:56]} 46. Nac5 {[%emt 0:00:49]} Bb5+ {[%emt 0:00:33]} 47. Ke3 {[%emt 0:01:20]} Ba6 {[%emt 0:02:49]} 48. Nxa6 {[%emt 0:01:35]} Kxb7 {[%emt 0:00:35]} 49. Nc7 {[%emt 0:00:13]} Kxb6 {[%emt 0:00:35]} 50. Ne8 {[%emt 0:01:23]} Be7 {[%emt 0:00:35]} 51. f4 {[%emt 0:00:41]} Kc5 {[%emt 0:01:09]} 52. f5 {[%emt 0:01:11]} gxf5 {[%emt 0:01:05]} 53. gxf5 {[%emt 0:00:05]} h5 {[%emt 0:01:44]} 54. Kf3 {[%emt 0:00:20]} h4 {[%emt 0:00:27]} 55. d6 {[%emt 0:01:59]} Bxd6 {[%emt 0:03:15]} 56. Nxf6 {[%emt 0:01:26]} Kd4 {[%emt 0:00:40]} 57. Ng4 {[%emt 0:00:36]} h3 {[%emt 0:00:24]} 58. f6 {[%emt 0:00:24]} Bf8 {[%emt 0:00:30]} 59. f7 {[%emt 0:00:12]} Bg7 {[%emt 0:05:52]} 60. Nf6 {[%emt 0:00:13]} h2 {[%emt 0:00:59]} 61. Kg2 {[%emt 0:00:22]} h1=Q+ {[%emt 0:00:17]} 62. Kxh1 {[%emt 0:00:04]} Kc5 {[%emt 0:01:05]} 63. Kg2 {[%emt 0:00:20]} Bh6 {[%emt 0:00:24]} 64. Nh7 {[%emt 0:00:31] Kd5} 1-0

[Event "19th Raciborz Open 2019"]
[Site "Raciborz"]
[Date "2019.02.11"]
[Round "5.4"]
[White "Piankov, Evgenij"]
[Black "Grabarczyk, Miroslaw"]
[Result "1/2-1/2"]
[ECO "A41"]
[WhiteElo "2225"]
[BlackElo "2374"]
[Annotator "ChessBase"]
[PlyCount "34"]
[EventDate "2019.02.09"]
[EventType "swiss"]
[EventCountry "POL"]
[SourceTitle "playchess.com"]
[Source "ChessBase"]
[SourceQuality "1"]
[TimeControl "5400+30"]

1. d4 {[%emt 0:00:00]} d6 {[%emt 0:00:20]} 2. Nf3 {[%emt 0:01:33]} Bg4 {[%emt 0:00:51]} 3. Bg5 {[%emt 0:02:29]} Bxf3 {[%emt 0:02:29]} 4. exf3 {[%emt 0:00:21]} Nd7 {[%emt 0:00:44]} 5. Nd2 {[%emt 0:02:50]} c6 {[%emt 0:02:22]} 6. c3 {[%emt 0:00:24]} h6 {[%emt 0:04:07]} 7. Bh4 {[%emt 0:00:19]} d5 {[%emt 0:08:41]} 8. Bd3 {[%emt 0:01:27]} Ngf6 {[%emt 0:00:25]} 9. f4 {[%emt 0:05:08]} e6 {[%emt 0:03:57]} 10. Nf3 {[%emt 0:00:38]} Be7 {[%emt 0:00:46]} 11. O-O {[%emt 0:00:28]} g6 {[%emt 0:19:25]} 12. Re1 {[%emt 0:05:35]} Ng8 {[%emt 0:03:28]} 13. Bxe7 {[%emt 0:00:37]} Nxe7 {[%emt 0:00:10]} 14. Ne5 {[%emt 0:01:24]} h5 {[%emt 0:05:55]} 15. Re3 {[%emt 0:04:02]} Kf8 {[%emt 0:04:36]} 16. Qc2 {[%emt 0:03:08]} Nxe5 {[%emt 0:03:55]} 17. fxe5 {[%emt 0:00:48]} Nf5 {[%emt 0:00:44]} 1/2-1/2

[Event "19th Raciborz Open 2019"]
[Site "Raciborz"]
[Date "2019.02.11"]
[Round "5.6"]
[White "Malecki, Rafal"]
[Black "Frolov, Artur"]
[Result "0-1"]
[ECO "A05"]
[WhiteElo "2036"]
[BlackElo "2447"]
[Annotator "ChessBase"]
[PlyCount "60"]
[EventDate "2019.02.09"]
[EventType "swiss"]
[EventCountry "POL"]
[SourceTitle "playchess.com"]
[Source "ChessBase"]
[SourceQuality "1"]
[TimeControl "5400+30"]

1. Nf3 {[%emt 0:00:00]} Nf6 {[%emt 0:00:00]} 2. g3 {[%emt 0:00:00]} c5 {[%emt 0:00:17]} 3. Bg2 {[%emt 0:00:00]} Nc6 {[%emt 0:00:04]} 4. O-O {[%emt 0:00:00]} d5 {[%emt 0:01:02]} 5. d3 {[%emt 0:00:07]} Bg4 {[%emt 0:00:31]} 6. h3 {[%emt 0:02:36]} Bh5 {[%emt 0:00:08]} 7. Nbd2 {[%emt 0:02:08]} e6 {[%emt 0:00:31]} 8. e4 {[%emt 0:06:45]} Be7 {[%emt 0:00:36]} 9. Re1 {[%emt 0:00:42]} O-O {[%emt 0:03:43]} 10. g4 {[%emt 0:08:19]} Bg6 {[%emt 0:00:05]} 11. Nh4 {[%emt 0:01:53]} dxe4 {[%emt 0:05:55]} 12. Nxg6 {[%emt 0:01:16]} hxg6 {[%emt 0:00:07]} 13. dxe4 {[%emt 0:07:26]} Qc7 {[%emt 0:00:23]} 14. c3 {[%emt 0:03:06]} Rad8 {[%emt 0:01:07]} 15. Qc2 {[%emt 0:10:11]} Ne5 {[%emt 0:02:57]} 16. Nf3 {[%emt 0:06:41]} Nd3 {[%emt 0:00:46]} 17. Re2 {[%emt 0:03:00]} c4 {[%emt 0:01:20]} 18. Bg5 {[%emt 0:05:39]} Rd7 {[%emt 0:02:29]} 19. e5 {[%emt 0:14:30]} Nd5 {[%emt 0:01:12]} 20. Bxe7 {[%emt 0:00:32]} Rxe7 {[%emt 0:02:34]} 21. Re4 {[%emt 0:01:19]} f5 {[%emt 0:07:56]} 22. exf6 {[%emt 0:06:25]} Rxf6 {[%emt 0:00:15]} 23. b3 {[%emt 0:06:58]} b5 {[%emt 0:00:16]} 24. a4 {[%emt 0:01:31]} Ref7 {[%emt 0:01:12]} 25. axb5 {[%emt 0:03:20]} Rxf3 {[%emt 0:00:10]} 26. bxc4 {[%emt 0:02:20]} Nxf2 {[%emt 0:08:31]} 27. cxd5 {[%emt 0:04:28]} Qg3 {[%emt 0:00:27]} 28. Ree1 {[%emt 0:02:11]} Nxh3+ {[%emt 0:00:14]} 29. Kh1 {[%emt 0:00:04]} Nf2+ {[%emt 0:00:11]} 30. Kg1 {[%emt 0:00:09]} Nxg4 {[%emt 0:00:13]} 0-1

[Event "19th Raciborz Open 2019"]
[Site "Raciborz"]
[Date "2019.02.11"]
[Round "5.7"]
[White "Simantsev, Mikhail"]
[Black "Smal, Tobiasz"]
[Result "1-0"]
[ECO "E71"]
[WhiteElo "2394"]
[BlackElo "2022"]
[Annotator "ChessBase"]
[PlyCount "49"]
[EventDate "2019.02.09"]
[EventType "swiss"]
[EventCountry "POL"]
[SourceTitle "playchess.com"]
[Source "ChessBase"]
[SourceQuality "1"]
[TimeControl "5400+30"]

1. d4 {[%emt 0:06:15]} Nf6 {[%emt 0:00:00]} 2. c4 {[%emt 0:00:01]} g6 {[%emt 0:00:07]} 3. Nc3 {[%emt 0:00:03]} Bg7 {[%emt 0:00:28]} 4. e4 {[%emt 0:00:01]} d6 {[%emt 0:00:17]} 5. h3 {[%emt 0:00:01]} O-O {[%emt 0:01:23]} 6. Nf3 {[%emt 0:00:02]} e5 {[%emt 0:01:26]} 7. d5 {[%emt 0:03:31]} Nh5 {[%emt 0:01:08]} 8. g3 {[%emt 0:00:38]} Na6 {[%emt 0:01:15]} 9. Be3 {[%emt 0:20:36]} f5 {[%emt 0:03:41]} 10. exf5 {[%emt 0:02:41]} gxf5 {[%emt 0:00:20]} 11. Nh4 {[%emt 0:06:12]} Nf6 {[%emt 0:05:34]} 12. Bd3 {[%emt 0:12:03]} e4 {[%emt 0:01:59]} 13. Be2 {[%emt 0:05:20]} Nd7 {[%emt 0:14:33]} 14. Qd2 {[%emt 0:03:05]} Ne5 {[%emt 0:00:48]} 15. f4 {[%emt 0:14:39]} exf3 {[%emt 0:02:09]} 16. Nxf3 {[%emt 0:00:42]} Qe7 {[%emt 0:04:08]} 17. O-O-O {[%emt 0:03:39]} Bd7 {[%emt 0:05:13]} 18. Rhe1 {[%emt 0:09:48]} Rae8 {[%emt 0:01:02]} 19. Nxe5 {[%emt 0:04:13]} Bxe5 {[%emt 0:09:48]} 20. Bh5 {[%emt 0:00:07]} Bxg3 {[%emt 0:08:13]} 21. Bxe8 {[%emt 0:05:21]} Bxe1 {[%emt 0:03:47]} 22. Qg2+ {[%emt 0:00:32]} Qg7 {[%emt 0:02:30]} 23. Qxg7+ {[%emt 0:00:16]} Kxg7 {[%emt 0:00:02]} 24. Bxd7 {[%emt 0:00:07]} Nb4 {[%emt 0:02:02]} 25. a3 {[%emt 0:00:51]} 1-0

[Event "19th Raciborz Open 2019"]
[Site "Raciborz"]
[Date "2019.02.12"]
[Round "6.9"]
[White "Strzelecki, Maciej"]
[Black "Posluszny, Tomasz"]
[Result "1/2-1/2"]
[ECO "B47"]
[WhiteElo "2119"]
[BlackElo "1843"]
[Annotator "NA"]
[PlyCount "73"]
[EventDate "2019.02.09"]
[EventType "swiss"]
[EventCountry "POL"]
[SourceTitle "playchess.com"]
[Source "ChessBase"]
[SourceQuality "1"]
[TimeControl "5400+30"]

1. e4 {[%emt 0:00:00]} c5 {[%emt 0:00:00]} 2. Nf3 {[%emt 0:00:00]} e6 {[%emt 0:00:00]} 3. d4 {[%emt 0:00:08]} cxd4 {[%emt 0:00:00]} 4. Nxd4 {[%emt 0:00:09]} Nc6 {[%emt 0:00:05]} 5. Nc3 {[%emt 0:00:16]} Qc7 {[%emt 0:00:15]} 6. f4 {[%emt 0:01:20]} a6 {[%emt 0:05:43]} 7. Nxc6 {[%emt 0:00:59]} Qxc6 {[%emt 0:01:44]} 8. Bd3 {[%emt 0:00:48]} Nf6 {[%emt 0:09:19] B47: Sicilian: Taimanov: 5 Nc3 Qc7 6 f4, 6 g3 and 6 Be2} (8... b5 9. Qe2 Bb7 10. Bd2 Bc5 11. O-O-O Ne7 12. a3 O-O 13. Qh5 f6 14. Rhf1 Rf7 15. g4 b4 16. axb4 Bxb4 17. e5 f5 18. Rg1 Rc8 {0-1 (53) Saric,I (2669)-Harikrishna,P (2744) Riadh 2017}) 9. Qe2 {[%emt 0:05:55]} d6 {[%emt 0:06:19]} 10. Bd2 {[%emt 0:11:17]} Be7 {[%emt 0:05:02]} 11. O-O-O {[%emt 0:07:54] LiveBook: 6 Games} O-O {[%emt 0:14:31]} 12. g4 $146 {[%emt 0:07:50]} ({Predecessor:} 12. e5 Nd7 13. exd6 Bxd6 14. Ne4 Be7 15. Bc3 Qc7 16. Rdf1 {1-0 (31) Gumularz,S (2256)-Martynkova,O (2124) Marianske Lazne 2015}) 12... Re8 {[%emt 0:00:51]} 13. g5 {[%emt 0:02:41]} Nd7 {[%emt 0:00:18]} 14. h4 {[%emt 0:03:21]} b5 {[%emt 0:08:21] [#]} 15. Rdg1 {[%emt 0:14:40]} (15. f5 $1 $16) 15... Bb7 {[%emt 0:01:18]} ({Black should try} 15... Nc5 $1 $11) 16. h5 {[%emt 0:04:00]} Nc5 $16 {[%emt 0:04:07]} (16... b4 $11 {keeps the balance.} 17. Nd1 Nc5) 17. g6 {[%emt 0:04:45]} Nxd3+ {[%emt 0:09:09]} 18. Qxd3 {[%emt 0:02:20]} b4 {[%emt 0:08:00]} 19. gxf7+ {[%emt 0:10:00]} Kxf7 {[%emt 0:00:10]} 20. f5 {[%emt 0:05:16]} bxc3 {[%emt 0:08:30]} 21. fxe6+ {[%emt 0:00:52]} Kf8 {[%emt 0:03:10]} 22. Bxc3 {[%emt 0:03:22]} Bf6 {[%emt 0:00:05]} 23. Bxf6 {[%emt 0:07:02]} gxf6 {[%emt 0:00:07]} 24. Qg3 {[%emt 0:01:48]} Ke7 {[%emt 0:00:47]} 25. Qg7+ {[%emt 0:00:19]} Kd8 {[%emt 0:00:12]} 26. Qxf6+ {[%emt 0:00:32]} Kc8 {[%emt 0:00:20]} 27. Rg7 {[%emt 0:02:43]} Kb8 {[%emt 0:09:51]} 28. Rh3 {[%emt 0:01:51]} Qxe4 {[%emt 0:01:02]} 29. Rxb7+ {[%emt 0:00:41]} Kxb7 {[%emt 0:04:42]} 30. Rb3+ {[%emt 0:00:23]} Kc6 {[%emt 0:00:12]} 31. Rc3+ {[%emt 0:00:19]} Kd5 {[%emt 0:00:41]} 32. Rd3+ {[%emt 0:00:08]} Kc6 {[%emt 0:00:33]} 33. Rc3+ {[%emt 0:00:05]} Kd5 {[%emt 0:00:26]} 34. Rd3+ {[%emt 0:00:09]} Kc6 {[%emt 0:00:32]} 35. Qc3+ Kb7 36. Qb3+ Ka7 37. Rxd6 1/2-1/2

[Event "19th Raciborz Open 2019"]
[Site "Raciborz"]
[Date "2019.02.12"]
[Round "6.10"]
[White "Drozniak, Stanislaw"]
[Black "Cieslak, Wiktoria"]
[Result "1-0"]
[ECO "B94"]
[WhiteElo "2048"]
[BlackElo "2037"]
[Annotator "NA"]
[PlyCount "57"]
[EventDate "2019.02.09"]
[EventType "swiss"]
[EventCountry "POL"]
[SourceTitle "playchess.com"]
[Source "ChessBase"]
[SourceQuality "1"]
[TimeControl "5400+30"]

1. e4 {[%emt 0:00:00]} c5 {[%emt 0:00:00]} 2. Nf3 {[%emt 0:00:00]} d6 {[%emt 0:00:00]} 3. d4 {[%emt 0:00:21]} cxd4 {[%emt 0:00:00]} 4. Nxd4 {[%emt 0:00:05]} Nf6 {[%emt 0:00:00]} 5. Nc3 {[%emt 0:00:08]} a6 {[%emt 0:00:00]} 6. Bg5 {[%emt 0:00:55]} Nbd7 {[%emt 0:02:25]} 7. Qe2 {[%emt 0:04:51]} Qc7 {[%emt 0:01:09]} 8. O-O-O {[%emt 0:08:36]} b5 {[%emt 0:01:12] [#]} 9. a3 {[%emt 0:10:20]} (9. Bxf6 $1 $16 Nxf6 10. Nd5 Nxd5 11. exd5) 9... Bb7 {[%emt 0:00:53]} 10. f4 {[%emt 0:01:29]} Rc8 {[%emt 0:06:00]} 11. Bxf6 {[%emt 0:01:57]} gxf6 {[%emt 0:02:05]} 12. g3 {[%emt 0:09:40]} Nb6 {[%emt 0:01:48]} 13. Bh3 {[%emt 0:05:10]} e6 {[%emt 0:13:02]} 14. Kb1 {[%emt 0:05:58]} Nc4 {[%emt 0:09:09] [#]} 15. Nd5 $1 {[%emt 0:04:06]} exd5 {[%emt 0:05:14]} 16. exd5+ {[%emt 0:04:54]} ({Not} 16. Bxc8 Qxc8 17. exd5+ Kd8 $16) 16... Be7 {[%emt 0:06:27]} 17. Rhe1 {[%emt 0:01:15]} ({Less strong is} 17. Bxc8 Bxc8 18. Rde1 Kf8 $16) 17... Rd8 $18 {[%emt 0:05:37]} (17... Ne5 $142 18. Bxc8 Bxc8) 18. Qh5 {[%emt 0:12:19]} Ne5 {[%emt 0:13:28]} 19. fxe5 {[%emt 0:06:25]} dxe5 {[%emt 0:00:33]} 20. Ne6 {[%emt 0:00:46]} Qc4 {[%emt 0:00:42]} 21. Nxd8 {[%emt 0:04:04]} Bxd8 {[%emt 0:00:51]} 22. Rxe5+ {[%emt 0:00:35]} Be7 {[%emt 0:02:57]} 23. d6 {[%emt 0:00:42]} fxe5 {[%emt 0:00:19]} 24. Qxe5 {[%emt 0:00:06]} O-O {[%emt 0:00:34]} 25. dxe7 {[%emt 0:00:24]} Re8 {[%emt 0:00:14]} 26. Qg5+ {[%emt 0:00:17]} Kh8 {[%emt 0:00:09]} 27. Qf6+ {[%emt 0:00:15]} Kg8 {[%emt 0:00:08]} 28. Rd4 {[%emt 0:00:37]} Rxe7 {[%emt 0:04:43]} 29. Rd8+ {[%emt 0:00:08]} 1-0

[Event "19th Raciborz Open 2019"]
[Site "Raciborz"]
[Date "2019.02.13"]
[Round "7.4"]
[White "Bogdanov, Egor"]
[Black "Grabarczyk, Miroslaw"]
[Result "1/2-1/2"]
[ECO "C47"]
[WhiteElo "2418"]
[BlackElo "2374"]
[Annotator "NA"]
[PlyCount "84"]
[EventDate "2019.02.09"]
[EventType "swiss"]
[EventCountry "POL"]
[SourceTitle "playchess.com"]
[Source "ChessBase"]
[SourceQuality "1"]
[TimeControl "5400+30"]

{[%evp 8,69,-8,0,32767,32767,6,32767,0,32767,32767,0,32767,0,32767,0,9,-4,2,0,0,8,0,-4,0,3,25,26,21,32,37,16,66,68,75,32767,32767,32767,32767,32767,66,32767,32767,32767,32767,86,94,74,75,65,69,56,61,58,61,58,64,56,55,56,54,32767,67,67]} 1. e4 {[%emt 0:01:50]} e5 {[%emt 0:00:00]} 2. Nf3 {[%emt 0:02:16]} Nf6 {[%emt 0:00:16]} 3. Nc3 {[%emt 0:01:11]} Nc6 {[%emt 0:00:37]} 4. d4 {[%emt 0:00:56]} exd4 {[%emt 0:00:40]} 5. Nxd4 {[%emt 0:00:08]} Bb4 {[%emt 0:00:40]} 6. Nxc6 {[%emt 0:03:45]} bxc6 {[%emt 0:00:12]} 7. Bd3 {[%emt 0:00:09]} d5 {[%emt 0:00:42]} 8. exd5 {[%emt 0:00:55]} cxd5 {[%emt 0:00:09]} 9. O-O {[%emt 0:00:47]} O-O {[%emt 0:00:13]} 10. Bg5 {[%emt 0:07:48]} c6 {[%emt 0:00:14]} 11. Qf3 {[%emt 0:00:54]} Bd6 {[%emt 0:03:25]} 12. Rfe1 {[%emt 0:07:42]} Rb8 {[%emt 0:01:58]} 13. Rab1 {[%emt 0:01:14]} h6 {[%emt 0:00:48] C47: Scotch Four Knights and Four Knights with 4 g3} 14. Bxf6 {[%emt 0:04:57]} Qxf6 {[%emt 0:00:16]} 15. Qxf6 {[%emt 0:00:08]} gxf6 {[%emt 0:00:08]} 16. Ne2 {[%emt 0:00:18]} Re8 {[%emt 0:03:41] LiveBook: 3 Games} (16... Be5 17. b3 Be6 18. Ng3 Rfe8 19. Nf5 h5 20. Rbd1 c5 21. Ne3 {½-½ (54) Le Roux,J (2551)-Fressinet,L (2715) Belfort 2012}) 17. Nd4 {[%emt 0:02:48]} Rxe1+ {[%emt 0:06:07]} 18. Rxe1 {[%emt 0:00:07]} Bd7 {[%emt 0:00:05]} 19. Bf5 {[%emt 0:01:07]} Be5 $146 {[%emt 0:05:54]} (19... Rb4 $11) ({Predecessor:} 19... Be8 20. c3 Kf8 {1-0 (41) Ligart,T (2175)-Fekete,J (2109) Hungary 2001}) 20. Bxd7 {[%emt 0:01:12]} Bxd4 {[%emt 0:00:06]} 21. b3 {[%emt 0:06:11]} c5 {[%emt 0:00:14]} 22. Re8+ {[%emt 0:06:36]} Rxe8 {[%emt 0:00:08]} 23. Bxe8 {[%emt 0:00:03]} Bc3 {[%emt 0:06:33]} 24. Bc6 {[%emt 0:01:04]} d4 {[%emt 0:00:12]} 25. Kf1 {[%emt 0:00:03]} d3 {[%emt 0:02:18]} 26. cxd3 {[%emt 0:00:17]} Kf8 {[%emt 0:00:51]} 27. Ke2 {[%emt 0:00:13]} Ke7 {[%emt 0:00:14]} 28. Bd5 {[%emt 0:00:04]} f5 {[%emt 0:00:52]} 29. f4 {[%emt 0:01:01]} Kf6 {[%emt 0:07:20]} 30. Bb7 {[%emt 0:00:22]} Bd4 {[%emt 0:01:42]} 31. Kf3 {[%emt 0:00:25]} Kg6 {[%emt 0:01:11]} 32. Bc8 {[%emt 0:00:09]} h5 {[%emt 0:00:56]} 33. g3 {[%emt 0:02:09]} a5 {[%emt 0:03:32]} 34. h3 {[%emt 0:05:19]} Kf6 {[%emt 0:03:32]} 35. a3 $14 {[%emt 0:02:30]} Bb2 {[%emt 0:01:52]} 36. a4 {[%emt 0:00:05]} Bd4 {[%emt 0:00:09]} 37. g4 {[%emt 0:00:26]} hxg4+ {[%emt 0:00:39]} 38. hxg4 {[%emt 0:00:03]} fxg4+ {[%emt 0:00:09]} 39. Bxg4 {[%emt 0:00:03]} Ke7 {[%emt 0:00:08]} 40. Ke4 {[%emt 0:00:01]} Kd6 {[%emt 0:00:18]} 41. Bh5 {[%emt 0:02:05]} f6 {[%emt 0:00:26]} 42. Bf7 {[%emt 0:00:56]} Bc3 {[%emt 0:00:27]} 1/2-1/2

[Event "19th Raciborz Open 2019"]
[Site "Raciborz"]
[Date "2019.02.13"]
[Round "7.5"]
[White "Nester, Ihor"]
[Black "Drozniak, Stanislaw"]
[Result "1/2-1/2"]
[ECO "A34"]
[WhiteElo "2369"]
[BlackElo "2048"]
[Annotator "ChessBase"]
[PlyCount "66"]
[EventDate "2019.02.09"]
[EventType "swiss"]
[EventCountry "POL"]
[SourceTitle "playchess.com"]
[Source "ChessBase"]
[SourceQuality "1"]
[TimeControl "5400+30"]

1. Nf3 {[%emt 0:03:32]} Nf6 {[%emt 0:00:00]} 2. c4 {[%emt 0:00:05]} c5 {[%emt 0:00:01]} 3. Nc3 {[%emt 0:00:12]} d5 {[%emt 0:01:01]} 4. cxd5 {[%emt 0:02:14]} Nxd5 {[%emt 0:00:05]} 5. d4 {[%emt 0:00:09]} Nxc3 {[%emt 0:00:32]} 6. bxc3 {[%emt 0:00:02]} g6 {[%emt 0:00:07]} 7. Bf4 {[%emt 0:01:09]} Bg7 {[%emt 0:01:45]} 8. e3 {[%emt 0:00:11]} O-O {[%emt 0:00:09]} 9. Be2 {[%emt 0:01:18]} Qa5 {[%emt 0:07:02]} 10. O-O {[%emt 0:14:29]} Nd7 {[%emt 0:15:17]} 11. Qb3 {[%emt 0:03:42]} cxd4 {[%emt 0:05:25]} 12. cxd4 {[%emt 0:00:01]} Nb6 {[%emt 0:10:58]} 13. a4 {[%emt 0:23:33]} Be6 {[%emt 0:07:44]} 14. Qb5 {[%emt 0:09:40]} Qxb5 {[%emt 0:00:47]} 15. axb5 {[%emt 0:00:10]} Bc4 {[%emt 0:05:05]} 16. Bxc4 {[%emt 0:00:39]} Nxc4 {[%emt 0:00:07]} 17. e4 {[%emt 0:14:33]} Rfd8 {[%emt 0:05:11]} 18. Rfc1 {[%emt 0:04:18]} Nd6 {[%emt 0:06:09]} 19. Bxd6 {[%emt 0:01:11]} Rxd6 {[%emt 0:00:11]} 20. e5 {[%emt 0:02:35]} Rb6 {[%emt 0:00:36]} 21. Ra5 {[%emt 0:09:39]} f6 {[%emt 0:08:18]} 22. Kf1 {[%emt 0:01:04]} Kf7 {[%emt 0:01:50]} 23. Rc7 {[%emt 0:02:27]} fxe5 {[%emt 0:07:19]} 24. dxe5 {[%emt 0:00:57]} a6 {[%emt 0:04:31]} 25. bxa6 {[%emt 0:02:29]} Rbxa6 {[%emt 0:01:09]} 26. Rd5 {[%emt 0:01:43]} Ra1+ {[%emt 0:02:34]} 27. Ke2 {[%emt 0:00:01]} R8a2+ {[%emt 0:01:24]} 28. Rd2 {[%emt 0:00:47]} Rxd2+ {[%emt 0:00:14]} 29. Kxd2 {[%emt 0:00:01]} Ra2+ {[%emt 0:00:15]} 30. Ke1 {[%emt 0:00:41]} Ra1+ {[%emt 0:00:19]} 31. Ke2 {[%emt 0:00:01]} Ra2+ {[%emt 0:00:12]} 32. Ke1 {[%emt 0:00:58]} Ra1+ {[%emt 0:00:05]} 33. Ke2 {[%emt 0:00:05]} Ra2+ {[%emt 0:00:04]} 1/2-1/2

[Event "19th Raciborz Open 2019"]
[Site "Raciborz"]
[Date "2019.02.13"]
[Round "7.6"]
[White "Koloczek, Maciej"]
[Black "Niedbala, Bartlomiej"]
[Result "1/2-1/2"]
[ECO "B09"]
[WhiteElo "1922"]
[BlackElo "1949"]
[Annotator "NA"]
[PlyCount "66"]
[EventDate "2019.02.09"]
[EventType "swiss"]
[EventCountry "POL"]
[SourceTitle "playchess.com"]
[Source "ChessBase"]
[SourceQuality "1"]
[TimeControl "5400+30"]

1. e4 {[%emt 0:00:00]} d6 {[%emt 0:00:00]} 2. d4 {[%emt 0:00:11]} Nf6 {[%emt 0:00:00]} 3. Nc3 {[%emt 0:00:37]} g6 {[%emt 0:00:09]} 4. f4 {[%emt 0:01:54]} Bg7 {[%emt 0:01:58]} 5. Nf3 {[%emt 0:00:38]} O-O {[%emt 0:03:09]} 6. Bd3 {[%emt 0:04:43]} Na6 {[%emt 0:05:14]} 7. O-O {[%emt 0:00:07]} c5 {[%emt 0:00:03]} 8. d5 {[%emt 0:00:36]} Bg4 {[%emt 0:01:32]} 9. h3 {[%emt 0:08:41]} Bxf3 {[%emt 0:04:27]} 10. Qxf3 {[%emt 0:00:14]} Nb4 {[%emt 0:12:30] B09: Pirc Defence: Austrian Attack} 11. a3 {[%emt 0:15:46]} (11. a4 Nd7 12. Qe2 Nxd3 13. Qxd3 Qb6 14. Kh1 Rac8 15. a5 Qa6 16. Qxa6 bxa6 17. Bd2 Rb8 18. b3 {0-1 (52) Sethuraman,S (2640)-Malakhov,V (2694) Berlin 2015}) 11... Nxd3 {[%emt 0:02:57]} 12. Qxd3 {[%emt 0:00:17]} Nd7 {[%emt 0:00:39]} 13. Ne2 {[%emt 0:07:48]} b5 {[%emt 0:06:00]} 14. Qxb5 $146 {[%emt 0:05:01]} ({Predecessor:} 14. Rb1 Rb8 15. b3 Qa5 16. c4 bxc4 17. Qxc4 Rb7 18. a4 {0-1 (42) Nassr,A (2064)-Arat,U (2159) Algiers 2012}) 14... Rb8 {[%emt 0:05:06]} 15. Qd3 {[%emt 0:02:29]} Bxb2 {[%emt 0:00:31]} 16. Rb1 {[%emt 0:00:40]} Bxc1 {[%emt 0:17:47]} 17. Rfxc1 {[%emt 0:00:29]} Qa5 {[%emt 0:00:16]} 18. c4 {[%emt 0:07:05]} (18. Kf2 $11) 18... Qa4 {[%emt 0:06:19]} 19. Kf2 {[%emt 0:13:47]} Rxb1 {[%emt 0:06:30]} 20. Rxb1 {[%emt 0:00:14]} Nb6 {[%emt 0:00:02]} 21. Qb3 {[%emt 0:05:37]} Qxc4 {[%emt 0:02:41]} 22. Qxc4 {[%emt 0:00:05]} Nxc4 {[%emt 0:00:01]} 23. Rb7 {[%emt 0:00:02]} a5 {[%emt 0:09:08]} 24. Rxe7 $11 {[%emt 0:00:48]} Nxa3 {[%emt 0:00:12]} 25. e5 {[%emt 0:00:45]} Nc4 {[%emt 0:01:43]} 26. exd6 {[%emt 0:01:12]} Nxd6 {[%emt 0:01:31]} 27. Ra7 {[%emt 0:01:35]} Ne4+ {[%emt 0:00:32]} 28. Kf3 {[%emt 0:00:55]} f5 {[%emt 0:00:09]} 29. g4 {[%emt 0:04:29]} Rd8 {[%emt 0:00:30]} 30. gxf5 {[%emt 0:00:07]} gxf5 {[%emt 0:01:30]} 31. Ng3 {[%emt 0:00:25]} Nxg3 {[%emt 0:02:59]} 32. Kxg3 {[%emt 0:00:02]} Rxd5 {[%emt 0:00:27]} 33. Rxa5 {[%emt 0:00:10]} Kg7 {[%emt 0:03:37]} 1/2-1/2